bitfinex/quotes_SOLUSD_20240702
["timestamp","ask_amount","ask_price","bid_price","bid_amount"]
[1719900652883,12.12,148.82,148.81,23.96229449]
[1719900653776,6.7201,148.81,148.79,23.96229449]
[1719900653981,18.8401,148.81,148.79,23.96229449]
[1719900655674,6.7204,148.8,148.79,23.96229449]
[1719900656175,18.8404,148.8,148.79,23.96229449]
[1719900657697,6.7211,148.79,148.74,23.96229449]
[1719900657866,12.12,148.8,148.74,23.96229449]
[1719900658190,6.7218,148.77,148.74,23.96229449]
[1719900658377,6.7214,148.78,148.74,23.96229449]
[1719900658767,18.8418,148.77,148.74,23.96229449]
[1719900659684,6.7226,148.75,148.74,23.96229449]
[1719900659890,18.8422,148.76,148.74,23.96229449]
[1719900660063,16.8027,148.79,148.72,24.81495829]
[1719900660267,6.7235,148.73,148.72,24.81495829]
[1719900661377,18.8432,148.74,148.72,24.81495829]
[1719900661779,6.7228,148.75,148.72,24.81495829]
[1719900661986,18.8434,148.74,148.72,24.81495829]
[1719900662571,6.7235,148.73,148.72,24.81495829]
[1719900663573,18.8432,148.74,148.72,24.81495829]
[1719900664189,6.7235,148.73,148.72,24.81495829]
[1719900664577,18.8435,148.73,148.72,24.81495829]
[1719900664773,18.8435,148.73,148.72,0.8526638]
[1719900667180,18.8435,148.73,148.64,6.1397]
[1719900667181,15.4141,148.73,148.63,45.57339449]
[1719900667394,12.12,148.68,148.65,23.96229449]
[1719900667574,6.7249,148.7,148.65,23.96229449]
[1719900667889,12.12,148.7,148.65,36.08229449]
[1719900668088,18.845,148.7,148.65,36.08229449]
[1719900668276,12.12,148.7,148.68,23.96229449]
[1719900668476,6.1303,148.75,148.68,23.96229449]
[1719900668696,12.12,148.71,148.7,23.96229449]
[1719900668890,18.844,148.72,148.68,23.96229449]
[1719900669374,18.8445,148.71,148.68,23.96229449]
[1719900669576,12.12,148.71,148.7,23.96229449]
[1719900670100,18.8444,148.71,148.7,23.96229449]
[1719900670609,18.8444,148.71,148.68,23.96229449]
[1719900670775,54.6103,148.75,148.68,23.96229449]
[1719900670980,12.12,148.71,148.68,23.96229449]
[1719900671179,18.8445,148.71,148.7,23.96229449]
[1719900671506,6.7245,148.71,148.7,23.96229449]
[1719900671882,6.725,148.7,148.68,23.96229449]
[1719900674703,12.12,148.69,148.66,23.96229449]
[1719900674910,12.12,148.69,148.63,23.96229449]
[1719900675202,6.7285,148.62,148.59,40.40059449]
[1719900675407,16.8176,148.66,148.61,23.96229449]
[1719900675579,6.7285,148.62,148.61,23.96229449]
[1719900675906,6.7276,148.65,148.61,23.96229449]
[1719900676291,6.7277,148.64,148.61,23.96229449]
[1719900676489,18.8485,148.63,148.61,23.96229449]
[1719900676797,6.7285,148.62,148.61,23.96229449]
[1719900676991,18.8485,148.62,148.61,23.96229449]
[1719900677188,16.8185,148.65,148.57,24.81495829]
[1719900677392,12.12,148.6,148.57,0.8526638]
[1719900677595,6.7301,148.59,148.57,0.8526638]
[1719900678193,12.12,148.6,148.57,0.8526638]
[1719900678404,6.729,148.61,148.57,24.81495829]
[1719900678604,12.12,148.62,148.59,23.96229449]
[1719900678802,15.04006739,148.69,148.57,12.9726638]
[1719900678803,6.7267,148.67,148.61,23.96229449]
[1719900679105,6.7263,148.67,148.63,23.96229449]
[1719900679290,12.12,148.66,148.63,23.96229449]
[1719900679887,18.8467,148.66,148.63,23.96229449]
[1719900680089,6.7276,148.64,148.63,23.96229449]
[1719900680384,12.12,148.65,148.63,23.96229449]
[1719900680710,18.8468,148.66,148.63,23.96229449]
[1719900681090,6.7273,148.65,148.63,23.96229449]
[1719900681496,6.7276,148.64,148.63,23.96229449]
[1719900682522,18.8476,148.64,148.63,23.96229449]
[1719900682808,6.7282,148.63,148.61,23.96229449]
[1719900683110,6.7277,148.64,148.61,23.96229449]
[1719900683296,12.12,148.63,148.61,23.96229449]
[1719900684411,18.8481,148.63,148.61,23.96229449]
[1719900685702,12.12,148.62,148.59,23.96229449]
[1719900686493,16.8177,148.66,148.59,23.96229449]
[1719900686693,12.12,148.62,148.59,23.96229449]
[1719900686888,18.8489,148.62,148.59,23.96229449]
[1719900687089,6.7294,148.6,148.57,24.81495829]
[1719900687286,18.8495,148.6,148.57,24.81495829]
[1719900687501,12.12,148.6,148.57,24.81495829]
[1719900687902,18.8495,148.6,148.57,24.81495829]
[1719900688515,6.7291,148.61,148.59,23.96229449]
[1719900688703,6.728,148.64,148.59,36.08229449]
[1719900688908,18.848,148.64,148.61,23.96229449]
[1719900689093,18.8482,148.63,148.59,23.96229449]
[1719900689694,18.8482,148.63,148.61,23.96229449]
[1719900689895,6.7285,148.62,148.61,23.96229449]
[1719900690501,18.8482,148.63,148.61,23.96229449]
[1719900691034,6.7285,148.62,148.59,23.96229449]
[1719900691592,6.7282,148.63,148.59,23.96229449]
[1719900691817,18.8482,148.63,148.59,23.96229449]
[1719900692519,6.7282,148.63,148.61,23.96229449]
[1719900692729,18.8482,148.63,148.61,23.96229449]
[1719900693332,12.12,148.63,148.61,23.96229449]
[1719900693826,12.12,148.62,148.59,23.96229449]
[1719900694120,6.7303,148.58,148.57,24.81495829]
[1719900694716,18.8499,148.59,148.57,24.81495829]
[1719900696115,6.7303,148.58,148.57,24.81495829]
[1719900696312,18.8503,148.58,148.57,24.81495829]
[1719900696505,18.8503,148.58,148.57,0.8526638]
[1719900696912,38.8503,148.58,148.57,0.8526638]
[1719900697119,38.8503,148.58,148.57,6.38e-05]
[1719900697420,38.8503,148.58,148.48,12.15990724]
[1719900697421,6.734,148.5,148.48,0.03990724]
[1719900697628,70.4832,148.57,148.49,23.96229449]
[1719900698000,72.2446,148.58,148.51,23.96229449]
[1719900698001,6.7319,148.55,148.51,23.96229449]
[1719900698197,27.2446,148.58,148.49,23.96229449]
[1719900698420,18.8527,148.53,148.49,23.96229449]
[1719900698720,31.9513,148.58,148.51,23.96229449]
[1719900698906,12.12,148.54,148.51,23.96229449]
[1719900699110,18.8522,148.54,148.51,23.96229449]
[1719900699421,12.12,148.51,148.49,23.96229449]
[1719900699624,12.12,148.51,148.48,0.03990724]
[1719900699824,41.2697,148.55,148.48,0.03990724]
[1719900700125,6.734,148.5,148.48,0.03990724]
[1719900700617,6.7336,148.51,148.48,0.03990724]
[1719900700824,6.7344,148.49,148.48,0.03990724]
[1719900702732,24.44,148.52,148.48,24.00220173]
[1719900702943,6.7338,148.51,148.48,24.00220173]
[1719900703106,6.734,148.5,148.48,0.03990724]
[1719900703305,41.2697,148.55,148.48,0.03990724]
[1719900703501,6.7332,148.52,148.48,0.03990724]
[1719900703730,24.44,148.55,148.48,24.00220173]
[1719900703942,24.44,148.55,148.48,0.03990724]
[1719900704126,6.7334,148.52,148.48,0.03990724]
[1719900704332,6.7336,148.51,148.49,23.96229449]
[1719900705133,24.44,148.55,148.48,0.03990724]
[1719900705437,6.7335,148.51,148.49,23.96229449]
[1719900706338,24.44,148.55,148.49,23.96229449]
[1719900706645,61.8311,148.54,148.48,0.03990724]
[1719900706826,6.734,148.5,148.48,24.00220173]
[1719900707735,24.44,148.55,148.5,23.96229449]
[1719900708042,6.7334,148.52,148.48,24.00220173]
[1719900708413,41.2699,148.55,148.48,24.00220173]
[1719900708634,6.734,148.5,148.48,24.00220173]
[1719900709330,6.7336,148.51,148.48,24.00220173]
[1719900709809,6.7341,148.5,148.48,24.00220173]
[1719900710311,41.2699,148.55,148.48,24.00220173]
[1719900710312,6.7344,148.49,148.48,24.00220173]
[1719900711114,6.734,148.5,148.48,24.00220173]
[1719900711645,6.7335,148.51,148.48,24.00220173]
[1719900711847,24.44,148.55,148.48,24.00220173]
[1719900712051,6.7331,148.52,148.48,24.00220173]
[1719900713031,24.44,148.55,148.5,23.96229449]
[1719900713252,6.7325,148.54,148.5,23.96229449]
[1719900713952,6.4719,148.57,148.5,23.96229449]
[1719900714152,39.5646,148.58,148.5,23.96229449]
[1719900714153,6.7314,148.56,148.5,23.96229449]
[1719900714620,6.7318,148.55,148.5,23.96229449]
[1719900715039,6.7318,148.55,148.53,23.96229449]
[1719900715653,6.7313,148.56,148.53,23.96229449]
[1719900715948,6.7312,148.57,148.53,23.96229449]
[1719900716355,6.7313,148.56,148.53,23.96229449]
[1719900716647,6.7314,148.56,148.53,23.96229449]
[1719900717148,6.7314,148.56,148.55,23.96229449]
[1719900718116,30.7927,148.61,148.53,23.96229449]
[1719900718336,6.7308,148.57,148.53,23.96229449]
[1719900718534,6.7304,148.58,148.53,23.96229449]
[1719900718730,22.2059,148.67,148.54,45.72599449]
[1719900718917,6.7299,148.59,148.56,23.96229449]
[1719900719120,6.7303,148.58,148.56,23.96229449]
[1719900719322,6.73,148.59,148.58,23.96229449]
[1719900720246,16.8224,148.62,148.56,23.96229449]
[1719900720942,6.7308,148.57,148.56,23.96229449]
[1719900721321,16.8277,148.57,148.5,45.76049449]
[1719900721522,6.7322,148.54,148.5,45.76049449]
[1719900721924,6.7322,148.54,148.52,23.96229449]
[1719900722139,6.7318,148.55,148.52,23.96229449]
[1719900722638,6.7308,148.57,148.52,23.96229449]
[1719900722847,6.7308,148.57,148.54,23.96229449]
[1719900723227,6.7308,148.57,148.52,23.96229449]
[1719900723618,6.7313,148.56,148.54,23.96229449]
[1719900723829,6.7309,148.57,148.54,23.96229449]
[1719900724345,6.7313,148.56,148.54,23.96229449]
[1719900725126,6.7308,148.58,148.54,23.96229449]
[1719900725330,6.7316,148.56,148.54,23.96229449]
[1719900726125,6.7317,148.55,148.54,23.96229449]
[1719900726643,6.7308,148.57,148.54,23.96229449]
[1719900727059,6.7308,148.57,148.52,23.96229449]
[1719900727344,6.7308,148.57,148.55,23.96229449]
[1719900727545,6.7312,148.56,148.55,23.96229449]
[1719900727744,39.6209,148.61,148.55,23.96229449]
[1719900727932,20.0,148.6,148.55,23.96229449]
[1719900728641,6.7304,148.58,148.55,23.96229449]
[1719900728948,6.7309,148.57,148.55,23.96229449]
[1719900729151,6.7307,148.58,148.55,23.96229449]
[1719900729650,6.7309,148.57,148.55,23.96229449]
[1719900730863,6.7303,148.59,148.55,23.96229449]
[1719900731230,6.7307,148.58,148.55,23.96229449]
[1719900732261,6.7308,148.57,148.55,23.96229449]
[1719900732557,6.7304,148.58,148.55,23.96229449]
[1719900732848,6.7304,148.58,148.57,23.96229449]
[1719900733433,6.73,148.59,148.57,23.96229449]
[1719900733951,18.94,148.59,148.57,23.96229449]
[1719900735352,6.7303,148.58,148.57,23.96229449]
[1719900736131,18.9403,148.58,148.57,23.96229449]
[1719900736532,6.7303,148.58,148.57,23.96229449]
[1719900736748,18.9403,148.58,148.57,23.96229449]
[1719900737066,6.7303,148.58,148.57,23.96229449]
[1719900737749,6.73,148.59,148.57,23.96229449]
[1719900740036,18.9395,148.6,148.57,23.96229449]
[1719900740237,18.9395,148.6,148.59,23.96229449]
[1719900740656,6.7295,148.6,148.59,23.96229449]
[1719900741341,18.9395,148.6,148.59,23.96229449]
[1719900742047,6.7295,148.6,148.59,23.96229449]
[1719900742244,18.9395,148.6,148.59,23.96229449]
[1719900742446,6.7303,148.58,148.57,23.96229449]
[1719900745862,6.73,148.59,148.57,23.96229449]
[1719900748147,6.7303,148.58,148.57,23.96229449]
[1719900751447,18.9403,148.58,148.57,23.96229449]
[1719900751647,6.7312,148.56,148.55,23.96229449]
[1719900751857,6.7321,148.54,148.53,23.96229449]
[1719900752578,6.7318,148.55,148.53,23.96229449]
[1719900753763,16.8244,148.6,148.53,23.96229449]
[1719900753963,12.21,148.56,148.55,23.96229449]
[1719900754151,18.9413,148.56,148.55,23.96229449]
[1719900754350,18.9413,148.56,148.51,15.3438]
[1719900754351,18.9413,148.56,148.53,23.96229449]
[1719900754768,18.9413,148.56,148.55,23.96229449]
[1719900755751,12.21,148.56,148.53,23.96229449]
[1719900755951,18.9415,148.56,148.53,23.96229449]
[1719900756752,18.9415,148.56,148.55,23.96229449]
[1719900756955,6.7309,148.57,148.55,23.96229449]
[1719900757165,12.21,148.56,148.55,23.96229449]
[1719900759588,6.7305,148.58,148.55,23.96229449]
[1719900759589,12.21,148.57,148.55,23.96229449]
[1719900760273,6.97734719,148.61,148.57,23.96229449]
[1719900760474,16.8211,148.63,148.57,23.96229449]
[1719900760475,12.21,148.59,148.57,23.96229449]
[1719900760689,18.94,148.59,148.57,23.96229449]
[1719900761176,12.21,148.59,148.57,23.96229449]
[1719900762361,6.7296,148.6,148.59,23.96229449]
[1719900762564,18.9396,148.6,148.59,23.96229449]
[1719900763183,18.9396,148.6,148.57,23.96229449]
[1719900763360,6.7299,148.59,148.57,23.96229449]
[1719900765181,18.9399,148.59,148.57,23.96229449]
[1719900766367,6.7303,148.58,148.57,23.96229449]
[1719900766774,18.9403,148.58,148.57,23.96229449]
[1719900766972,6.7303,148.58,148.57,23.96229449]
[1719900768585,6.73,148.59,148.57,23.96229449]
[1719900768888,18.94,148.59,148.57,23.96229449]
[1719900769962,6.7303,148.58,148.57,23.96229449]
[1719900770379,18.94,148.59,148.57,23.96229449]
[1719900771583,23.7980537,148.63,148.57,23.96229449]
[1719900771584,6.9769537,148.63,148.62,23.96229449]
[1719900771765,12.21,148.66,148.64,23.96229449]
[1719900771971,18.9367,148.66,148.64,23.96229449]
[1719900772170,6.7264,148.67,148.66,23.96229449]
[1719900772368,18.9364,148.67,148.66,23.96229449]
[1719900773892,6.7268,148.66,148.64,23.96229449]
[1719900774984,18.9368,148.66,148.64,23.96229449]
[1719900775485,6.7268,148.66,148.64,23.96229449]
[1719900775683,6.7264,148.67,148.64,23.96229449]
[1719900775885,6.7264,148.67,148.66,23.96229449]
[1719900776990,18.9364,148.67,148.66,23.96229449]
[1719900777976,12.21,148.67,148.66,23.96229449]
[1719900778187,12.21,148.68,148.66,23.96229449]
[1719900778782,6.7257,148.69,148.66,23.96229449]
[1719900778988,12.21,148.68,148.66,23.96229449]
[1719900779202,6.7257,148.69,148.66,23.96229449]
[1719900779412,18.9358,148.68,148.66,23.96229449]
[1719900779913,6.7258,148.68,148.66,23.96229449]
[1719900780093,18.9358,148.68,148.66,23.96229449]
[1719900780929,6.7258,148.68,148.66,23.96229449]
[1719900781079,18.9358,148.68,148.66,23.96229449]
[1719900782192,18.9359,148.68,148.66,23.96229449]
[1719900782393,6.7259,148.68,148.66,23.96229449]
[1719900783099,6.7263,148.67,148.66,23.96229449]
[1719900783890,18.9363,148.67,148.66,23.96229449]
[1719900791110,6.7263,148.67,148.66,23.96229449]
[1719900791689,18.9363,148.67,148.66,23.96229449]
[1719900794225,38.7893,148.72,148.66,23.96229449]
[1719900794520,12.21,148.67,148.66,23.96229449]
[1719900795186,18.9361,148.68,148.66,23.96229449]
[1719900796008,6.7263,148.67,148.66,23.96229449]
[1719900796212,18.9363,148.67,148.66,23.96229449]
[1719900797093,6.7267,148.66,148.64,23.96229449]
[1719900797295,12.21,148.65,148.62,23.96229449]
[1719900797500,29.0249,148.68,148.62,23.96229449]
[1719900797703,12.21,148.63,148.62,23.96229449]
[1719900798300,18.9381,148.63,148.62,23.96229449]
[1719900798497,12.21,148.63,148.62,23.96229449]
[1719900798906,12.21,148.63,148.58,23.96229449]
[1719900799407,12.21,148.63,148.56,23.96229449]
[1719900800005,12.21,148.59,148.56,23.96229449]
[1719900801006,6.7292,148.61,148.58,23.96229449]
[1719900801207,18.9392,148.61,148.58,23.96229449]
[1719900801407,6.7286,148.62,148.58,23.96229449]
[1719900801708,12.21,148.61,148.58,23.96229449]
[1719900802520,12.98881558,148.66,148.6,23.96229449]
[1719900802727,12.21,148.64,148.6,23.96229449]
[1719900802899,12.21,148.64,148.62,23.96229449]
[1719900803218,12.21,148.63,148.6,23.96229449]
[1719900803390,12.21,148.62,148.6,23.96229449]
[1719900803906,18.9386,148.62,148.6,23.96229449]
[1719900804291,12.21,148.62,148.6,23.96229449]
[1719900804688,18.9385,148.62,148.6,23.96229449]
[1719900805004,12.21,148.62,148.6,23.96229449]
[1719900805504,12.21,148.63,148.62,23.96229449]
[1719900805708,6.7276,148.64,148.62,23.96229449]
[1719900805709,18.9376,148.64,148.62,23.96229449]
[1719900805899,12.21,148.64,148.62,23.96229449]
[1719900806216,18.9376,148.64,148.62,23.96229449]
[1719900809714,6.7281,148.63,148.62,23.96229449]
[1719900810022,18.9378,148.64,148.62,23.96229449]
[1719900810221,6.7281,148.63,148.62,23.96229449]
[1719900813000,18.9381,148.63,148.62,23.96229449]
[1719900815017,6.729,148.61,148.6,23.96229449]
[1719900815233,18.939,148.61,148.6,23.96229449]
[1719900815403,6.7299,148.59,148.58,23.96229449]
[1719900816230,18.9399,148.59,148.58,23.96229449]
[1719900819724,6.7299,148.59,148.58,23.96229449]
[1719900819926,18.9399,148.59,148.58,23.96229449]
[1719900825702,12.21,148.59,148.58,23.96229449]
[1719900827619,18.9399,148.59,148.58,23.96229449]
[1719900828818,18.9399,148.59,148.56,23.96229449]
[1719900829128,18.9405,148.58,148.56,23.96229449]
[1719900829528,12.21,148.57,148.56,23.96229449]
[1719900834642,6.7295,148.6,148.56,23.96229449]
[1719900834841,12.21,148.59,148.58,23.96229449]
[1719900835224,16.8209,148.63,148.58,23.96229449]
[1719900835619,12.21,148.59,148.58,23.96229449]
[1719900836242,18.9399,148.59,148.58,23.96229449]
[1719900837029,12.21,148.59,148.58,23.96229449]
[1719900841439,6.7296,148.6,148.58,23.96229449]
[1719900841623,12.21,148.59,148.58,23.96229449]
[1719900842846,18.9399,148.59,148.58,23.96229449]
[1719900843028,6.7296,148.6,148.58,23.96229449]
[1719900843228,12.21,148.59,148.58,23.96229449]
[1719900843428,18.9399,148.59,148.58,23.96229449]
[1719900844943,12.21,148.62,148.58,23.96229449]
[1719900845246,18.9385,148.62,148.58,23.96229449]
[1719900845433,18.9385,148.62,148.6,23.96229449]
[1719900845626,18.939,148.61,148.6,23.96229449]
[1719900846134,12.21,148.61,148.6,23.96229449]
[1719900846334,18.939,148.61,148.6,23.96229449]
[1719900846534,6.7286,148.62,148.6,23.96229449]
[1719900846848,12.21,148.61,148.6,23.96229449]
[1719900853345,6.7282,148.63,148.6,23.96229449]
[1719900853539,12.21,148.62,148.6,23.96229449]
[1719900855853,18.9387,148.62,148.6,23.96229449]
[1719900856056,6.7287,148.62,148.6,23.96229449]
[1719900856236,18.9387,148.62,148.6,23.96229449]
[1719900856438,12.21,148.62,148.6,23.96229449]
[1719900856757,6.7282,148.63,148.6,23.96229449]
[1719900857052,18.9382,148.63,148.6,23.96229449]
[1719900857550,6.7282,148.63,148.62,23.96229449]
[1719900857738,18.9382,148.63,148.62,23.96229449]
[1719900860465,16.8142,148.69,148.62,23.96229449]
[1719900860765,6.7273,148.65,148.64,23.96229449]
[1719900861237,18.9373,148.65,148.64,23.96229449]
[1719900863849,12.21,148.65,148.64,23.96229449]
[1719900864667,6.7263,148.67,148.64,23.96229449]
[1719900864868,12.21,148.67,148.66,23.96229449]
[1719900865035,12.21,148.68,148.64,23.96229449]
[1719900865239,18.9366,148.67,148.64,23.96229449]
[1719900865562,18.9363,148.67,148.66,23.96229449]
[1719900872084,18.9363,148.67,148.66,23.96229449]
[1719900874214,6.7263,148.67,148.66,23.96229449]
[1719900874216,16.1313,148.7,148.66,23.96229449]
[1719900874220,12.21,148.67,148.66,23.96229449]
[1719900874362,15.5931,148.74,148.66,23.96229449]
[1719900874562,15.5931,148.74,148.63,20.22]
[1719900874563,12.21,148.7,148.68,23.96229449]
[1719900874958,12.21,148.71,148.68,23.96229449]
[1719900875147,6.7237,148.73,148.68,23.96229449]
[1719900875349,15.5931,148.74,148.68,23.96229449]
[1719900875647,18.9346,148.71,148.7,23.96229449]
[1719900877262,6.7246,148.71,148.7,23.96229449]
[1719900877807,18.9346,148.71,148.7,23.96229449]
[1719900878489,6.7241,148.72,148.7,23.96229449]
[1719900878678,12.21,148.71,148.7,23.96229449]
[1719900879165,6.7241,148.72,148.7,23.96229449]
[1719900880646,12.21,148.71,148.7,23.96229449]
[1719900880652,18.9344,148.71,148.7,23.96229449]
[1719900880670,12.21,148.71,148.65,23.96229449]
[1719900880672,6.7266,148.67,148.65,23.96229449]
[1719900880968,74.0217,148.71,148.65,23.96229449]
[1719900880969,18.9367,148.66,148.65,23.96229449]
[1719900882877,12.21,148.66,148.65,23.96229449]
[1719900884855,18.9367,148.66,148.65,23.96229449]
[1719900885470,12.21,148.66,148.65,23.96229449]
[1719900887876,18.9367,148.66,148.65,23.96229449]
[1719900889663,6.7267,148.66,148.65,23.96229449]
[1719900889870,6.7263,148.67,148.65,23.96229449]
[1719900890083,12.21,148.66,148.65,23.96229449]
[1719900890486,6.7263,148.67,148.65,23.96229449]
[1719900890687,12.21,148.66,148.65,23.96229449]
[1719900894371,18.9367,148.66,148.63,23.96229449]
[1719900894377,6.7272,148.65,148.63,23.96229449]
[1719900894386,18.9369,148.66,148.63,23.96229449]
[1719900894579,12.21,148.64,148.63,23.96229449]
[1719900895880,6.7262,148.68,148.63,23.96229449]
[1719900896071,6.7262,148.68,148.65,23.96229449]
[1719900896290,12.21,148.66,148.65,23.96229449]
[1719900897682,12.21,148.66,148.63,23.96229449]
[1719900898566,12.21,148.64,148.63,23.96229449]
[1719900898577,6.7259,148.68,148.63,23.96229449]
[1719900898589,16.8118,148.71,148.65,23.96229449]
[1719900898596,12.21,148.68,148.65,23.96229449]
[1719900898686,12.21,148.66,148.65,23.96229449]
[1719900901387,6.726,148.68,148.65,23.96229449]
[1719900901589,12.21,148.66,148.65,23.96229449]
[1719900903902,6.726,148.68,148.67,23.96229449]
[1719900904098,18.936,148.68,148.67,23.96229449]
[1719900907501,6.726,148.68,148.67,23.96229449]
[1719900907505,18.936,148.68,148.67,23.96229449]
[1719900908497,6.7267,148.67,148.65,23.96229449]
[1719900908715,18.9367,148.66,148.65,23.96229449]
[1719900910919,12.21,148.66,148.65,23.96229449]
[1719900913434,18.9367,148.66,148.65,23.96229449]
[1719900922500,6.7267,148.66,148.65,23.96229449]
[1719900922701,6.7263,148.67,148.65,23.96229449]
[1719900922909,18.9363,148.67,148.65,23.96229449]
[1719900923648,18.9367,148.66,148.65,23.96229449]
[1719900926435,6.7267,148.66,148.65,23.96229449]
[1719900927107,6.7267,148.66,148.65,23.56229449]
[1719900928405,6.7263,148.67,148.65,23.56229449]
[1719900928605,18.9363,148.67,148.65,23.56229449]
[1719900929035,6.7267,148.66,148.65,23.56229449]
[1719900930827,18.9367,148.66,148.65,23.56229449]
[1719900931124,6.7276,148.64,148.63,23.56229449]
[1719900931301,18.9376,148.64,148.63,23.56229449]
[1719900932895,6.7294,148.6,148.59,23.56229449]
[1719900932907,16.8211,148.63,148.57,23.56229449]
[1719900932908,6.7303,148.58,148.57,23.56229449]
[1719900933122,18.9403,148.58,148.57,23.56229449]
[1719900934304,12.21,148.58,148.53,23.56229449]
[1719900934509,12.21,148.54,148.53,23.56229449]
[1719900935006,6.7312,148.56,148.53,23.56229449]
[1719900935805,12.21,148.54,148.53,23.56229449]
[1719900936288,12.21,148.55,148.53,23.56229449]
[1719900936813,6.7308,148.57,148.56,23.56229449]
[1719900938625,12.21,148.57,148.56,23.56229449]
[1719900938636,6.7303,148.59,148.58,23.56229449]
[1719900938654,6.7295,148.6,148.58,23.56229449]
[1719900938659,12.21,148.59,148.58,23.56229449]
[1719900939212,18.9399,148.59,148.58,23.56229449]
[1719900939627,6.7295,148.6,148.58,23.56229449]
[1719900939822,6.7291,148.61,148.6,23.56229449]
[1719900940138,16.8192,148.64,148.6,23.56229449]
[1719900940431,21.8076574,148.66,148.62,23.56229449]
[1719900940627,18.9373,148.65,148.64,23.56229449]
[1719900942196,6.7273,148.65,148.64,23.56229449]
[1719900948537,12.21,148.65,148.62,23.56229449]
[1719900950399,6.7281,148.63,148.62,23.56229449]
[1719900950437,18.9381,148.63,148.62,23.56229449]
[1719900951038,12.21,148.63,148.62,23.56229449]
[1719900951725,6.7272,148.65,148.62,23.56229449]
[1719900951930,12.21,148.63,148.62,23.56229449]
[1719900954227,18.9381,148.63,148.62,23.56229449]
[1719900954262,12.21,148.63,148.62,23.56229449]
[1719900954732,12.21,148.66,148.65,23.56229449]
[1719900956395,6.7258,148.69,148.65,23.56229449]
[1719900956398,12.21,148.67,148.65,23.56229449]
[1719900957047,6.7259,148.68,148.67,23.56229449]
[1719900957247,18.9359,148.68,148.67,23.56229449]
[1719900958153,6.7264,148.67,148.65,23.56229449]
[1719900958941,18.9367,148.66,148.65,23.56229449]
[1719900961305,6.7272,148.65,148.63,23.56229449]
[1719900962971,12.21,148.64,148.63,23.56229449]
[1719900962976,6.7264,148.67,148.63,23.56229449]
[1719900962981,12.21,148.65,148.63,23.56229449]
[1719900962984,6.7264,148.67,148.66,23.56229449]
[1719900963233,18.9364,148.67,148.66,23.56229449]
[1719900965171,12.21,148.67,148.64,23.56229449]
[1719900966123,12.21,148.65,148.64,23.56229449]
[1719900966471,18.9372,148.65,148.64,23.56229449]
[1719900966482,12.21,148.65,148.64,23.56229449]
[1719900966676,6.7264,148.67,148.64,23.56229449]
[1719900966860,12.21,148.65,148.64,23.56229449]
[1719900968963,6.728,148.64,148.62,23.56229449]
[1719900969158,18.938,148.64,148.62,23.56229449]
[1719900969455,18.9381,148.63,148.62,23.56229449]
[1719900969978,12.21,148.63,148.62,23.56229449]
[1719900970975,6.7272,148.65,148.62,23.56229449]
[1719900971155,6.7268,148.66,148.62,23.56229449]
[1719900971941,12.21,148.64,148.62,23.56229449]
[1719900972680,6.7268,148.66,148.62,23.56229449]
[1719900974513,6.7264,148.67,148.62,23.56229449]
[1719900974515,12.21,148.66,148.64,23.56229449]
[1719900974548,18.9368,148.66,148.62,23.56229449]
[1719900974553,12.21,148.65,148.62,23.56229449]
[1719900974968,12.21,148.65,148.64,23.56229449]
[1719900976477,6.7264,148.67,148.64,23.56229449]
[1719900976982,12.21,148.65,148.64,23.56229449]
[1719900978200,12.21,148.66,148.64,23.56229449]
[1719900978590,18.9368,148.66,148.64,23.56229449]
[1719900979094,6.7264,148.67,148.64,23.56229449]
[1719900980814,12.21,148.66,148.64,23.56229449]
[1719900980834,6.7263,148.67,148.64,23.56229449]
[1719900980839,6.7259,148.68,148.66,23.56229449]
[1719900980845,18.9359,148.68,148.66,23.56229449]
[1719900982292,6.7249,148.7,148.68,23.56229449]
[1719900982468,6.7249,148.7,148.66,23.56229449]
[1719900982670,18.9349,148.7,148.66,23.56229449]
[1719900982882,18.9349,148.7,148.69,23.56229449]
[1719900984742,6.7249,148.7,148.69,23.56229449]
[1719900984773,12.21,148.71,148.69,23.56229449]
[1719900984782,6.7244,148.72,148.71,23.56229449]